fUST/lending_fUST_20240813
["ID","MTS","AMOUNT","RATE_DAILY","PERIOD"]
[334709144,1723493451129,-1091.47,0.00015417,2]
[334709145,1723493451139,-2080.65,0.00015417,2]
[334709146,1723493451149,-3407.53,0.00015417,2]
[334709147,1723493451161,-1336.77,0.00015417,2]
[334709148,1723493451170,-747.63,0.00015417,2]
[334709149,1723493451181,-396.125028,0.00015417,2]
[334709150,1723493451190,-396.125028,0.00015417,2]
[334709151,1723493451199,-1677.62,0.00015417,2]
[334709152,1723493451208,-150.91505608,0.00015417,2]
[334709153,1723493451218,-1062.88,0.00015417,2]
[334709154,1723493451227,-863.16,0.00015417,2]
[334709155,1723493451236,-500.0,0.00015417,2]
[334709156,1723493451245,-500.0,0.00015418,2]
[334709157,1723493451254,-884.53,0.00015418,2]
[334709158,1723493451265,-754.79,0.00015418,2]
[334709159,1723493451274,-500.0,0.00015418,2]
[334709160,1723493451284,-500.0,0.00015418,2]
[334709161,1723493451294,-500.0,0.00015418,2]
[334709162,1723493451303,-338.95906,0.00015418,2]
[334709163,1723493451313,-338.95906,0.00015418,2]
[334709164,1723493451322,-500.0,0.00015418,2]
[334709165,1723493451331,-594.9,0.00015418,2]
[334709166,1723493451341,-666.22,0.00015418,2]
[334709167,1723493451350,-757.45,0.00015418,2]
[334709168,1723493451359,-500.0,0.00015418,2]
[334709169,1723493451368,-500.0,0.00015418,2]
[334709170,1723493451377,-500.0,0.00015418,2]
[334709171,1723493451386,-664.84,0.00015418,2]
[334709172,1723493451396,-500.0,0.00015418,2]
[334709173,1723493451405,-500.0,0.00015418,2]
[334709174,1723493451415,-500.0,0.00015418,2]
[334709175,1723493451424,-526.27,0.00015418,2]
[334709176,1723493451435,-500.0,0.00015418,2]
[334709177,1723493451444,-500.0,0.00015418,2]
[334709178,1723493451454,-500.0,0.00015418,2]
[334709179,1723493451464,-500.0,0.00015418,2]
[334709180,1723493451474,-1143.79,0.00015418,2]
[334709181,1723493451483,-625.27312799,0.00015418,2]
[334709182,1723493451493,-500.0,0.00015418,2]
[334709183,1723493451502,-500.0,0.00015418,2]
[334709184,1723493451511,-500.0,0.00015418,2]
[334709185,1723493451521,-586.95,0.00015418,2]
[334709186,1723493451530,-500.0,0.00015418,2]
[334709187,1723493451539,-576.31,0.00015418,2]
[334709188,1723493451549,-500.0,0.00015418,2]
[334709189,1723493451558,-500.0,0.00015418,2]
[334709190,1723493451567,-767.74,0.00015418,2]
[334709191,1723493451576,-500.0,0.00015418,2]
[334709192,1723493451585,-1492.04,0.00015418,2]
[334709193,1723493451595,-500.0,0.00015418,2]
[334709194,1723493451604,-1088.62,0.00015418,2]
[334709195,1723493451613,-500.0,0.00015418,2]
[334709196,1723493451623,-500.0,0.00015418,2]
[334709197,1723493451632,-612.61,0.00015418,2]
[334709198,1723493451642,-489.698175,0.00015418,2]
[334709199,1723493451651,-489.698175,0.00015418,2]
[334709200,1723493451661,-574.13,0.00015418,2]
[334709201,1723493451671,-563.72385,0.00015418,2]
[334709202,1723493451681,-563.72385,0.00015418,2]
[334709203,1723493451690,-1523.59,0.00015418,2]
[334709204,1723493451699,-151.0,0.00015418,2]
[334709205,1723493451710,-151.0,0.00015418,2]
[334709206,1723493451719,-500.0,0.00015418,2]
[334709207,1723493451728,-217.733989,0.00015418,2]
[334709208,1723493451738,-217.733989,0.00015418,2]
[334709209,1723493451747,-1364.03,0.00015418,2]
[334709210,1723493451757,-500.0,0.00015418,2]
[334709211,1723493451766,-500.0,0.00015418,2]
[334709212,1723493451775,-545.91,0.00015418,2]
[334709213,1723493451784,-2051.46,0.00015418,2]
[334709214,1723493451794,-500.0,0.00015418,2]
[334709215,1723493451803,-1197.08,0.00015418,2]
[334709216,1723493451812,-500.0,0.00015429,2]
[334709217,1723493451823,-500.0,0.00015429,2]
[334709218,1723493451835,-500.0,0.00015429,2]
[334709219,1723493451845,-817.28,0.00015429,2]
[334709220,1723493451854,-500.0,0.00015429,2]
[334709221,1723493451864,-500.0,0.00015429,2]
[334709222,1723493451874,-500.0,0.00015429,2]
[334709223,1723493451884,-500.0,0.00015429,2]
[334709224,1723493451894,-500.0,0.00015429,2]
[334709225,1723493451904,-500.0,0.00015429,2]
[334709226,1723493451914,-500.0,0.00015429,2]
[334709227,1723493451924,-500.0,0.00015429,2]
[334709228,1723493451934,-500.0,0.00015429,2]
[334709229,1723493451944,-500.0,0.00015429,2]
[334709230,1723493451953,-1081.43,0.00015429,2]
[334709231,1723493451963,-500.0,0.00015429,2]
[334709232,1723493451973,-500.0,0.00015429,2]
[334709233,1723493451982,-500.0,0.00015429,2]
[334709234,1723493451992,-500.0,0.00015429,2]
[334709235,1723493452001,-500.0,0.00015429,2]
[334709236,1723493452011,-500.0,0.00015429,2]
[334709237,1723493452021,-500.0,0.00015429,2]
[334709238,1723493452031,-500.0,0.00015429,2]
[334709239,1723493452040,-890.51,0.00015429,2]
[334709240,1723493452050,-500.0,0.00015429,2]
[334709241,1723493452061,-560.92,0.00015429,2]
[334709242,1723493452070,-500.0,0.00015429,2]
[334709243,1723493452080,-500.0,0.00015429,2]
[334709244,1723493452089,-500.0,0.00015429,2]
[334709245,1723493452098,-500.0,0.00015429,2]
[334709246,1723493452108,-500.0,0.00015429,2]
[334709247,1723493452118,-500.0,0.00015429,2]
[334709248,1723493452128,-500.0,0.00015429,2]
[334709249,1723493452139,-500.0,0.00015429,2]
[334709250,1723493452151,-627.49681754,0.00015429,2]
[334709251,1723493452173,-500.0,0.00015429,2]
[334709252,1723493452185,-500.0,0.00015429,2]
[334709253,1723493452195,-500.0,0.00015429,2]
[334709254,1723493452205,-500.0,0.00015429,2]
[334709255,1723493452215,-500.0,0.00015429,2]
[334709256,1723493452226,-272.13699748,0.00015429,2]
[334709257,1723493452236,-500.0,0.00015429,2]
[334709258,1723493452248,-500.0,0.00015429,2]
[334709259,1723493452259,-500.0,0.00015429,2]
[334709260,1723493452269,-500.0,0.00015429,2]
[334709261,1723493452280,-500.0,0.00015429,2]
[334709262,1723493452291,-720.13,0.00015429,2]
[334709263,1723493452301,-500.0,0.00015429,2]
[334709264,1723493452312,-2521.05,0.00015429,2]
[334709265,1723493452322,-556.84,0.00015429,2]
[334709266,1723493452334,-500.0,0.00015429,2]
[334709267,1723493452345,-500.0,0.00015429,2]
[334709268,1723493452355,-500.0,0.00015429,2]
[334709269,1723493452365,-619.28,0.00015429,2]
[334709270,1723493452374,-500.0,0.00015429,2]
[334709271,1723493452385,-500.0,0.00015429,2]
[334709272,1723493452395,-500.0,0.00015429,2]
[334709273,1723493452405,-500.0,0.00015429,2]
[334709274,1723493452417,-307.197218,0.00015429,2]
[334709275,1723493452429,-307.197218,0.00015429,2]
[334709276,1723493452440,-754.440334,0.00015429,2]
[334709277,1723493452450,-754.440334,0.00015429,2]
[334709278,1723493452460,-151.0,0.00015429,2]
[334709279,1723493452470,-179.24528,0.00015429,2]
[334709280,1723493452479,-151.0,0.00015429,2]
[334709281,1723493452489,-500.0,0.00015437,2]
[334709282,1723493452499,-500.0,0.00015437,2]
[334709283,1723493452509,-500.0,0.00015437,2]
[334709284,1723493452520,-500.0,0.00015437,2]
[334709285,1723493452530,-608.49,0.00015437,2]
[334709286,1723493452542,-151.0,0.00015439,2]
[334709287,1723493452553,-1333.66,0.0001558,2]
[334709288,1723493452563,-500.0,0.00015591,2]
[334709289,1723493452573,-2377.98,0.00015591,2]
[334709290,1723493452583,-8181.28,0.00015591,2]
[334709291,1723493452593,-892.34,0.00015591,2]
[334709292,1723493452602,-1446.3,0.00015591,2]
[334709293,1723493452612,-969.44,0.00015592,2]
[334709294,1723493452624,-500.0,0.00015592,2]
[334709295,1723493452634,-4918.39,0.00015592,2]
[334709296,1723493452644,-1537.59,0.00015592,2]
[334709297,1723493452655,-1065.07,0.00015592,2]
[334709298,1723493452666,-4804.94,0.00015592,2]
[334709299,1723493452677,-1748.84,0.00015592,2]
[334709300,1723493452687,-199.02120333,0.00015592,2]
[334709301,1723493452704,-300.97879667,0.00015592,2]
[334709302,1723493452713,-545.71,0.00015592,2]
[334709303,1723493452723,-1398.51120273,0.00015592,2]
[334709304,1723493452967,-26.08956385,0.00014758,2]
[334709305,1723493453760,-541.28,0.00014758,2]
[334709306,1723493453772,-473.91043615,0.00014758,2]
[334709307,1723493453782,-500.0,0.00014758,2]
[334709308,1723493453791,-500.0,0.00014758,2]
[334709309,1723493453801,-500.0,0.00014758,2]
[334709310,1723493453812,-500.0,0.00014758,2]
[334709311,1723493453822,-500.0,0.00014758,2]
[334709312,1723493453835,-500.0,0.00014758,2]
[334709313,1723493453844,-500.0,0.00014758,2]
[334709314,1723493453854,-513.80417286,0.00014758,2]
[334709315,1723493453863,-500.0,0.00014758,2]
[334709316,1723493453875,-151.0,0.00014869,2]
[334709317,1723493453884,-151.0,0.00014869,2]
[334709318,1723493453894,-500.0,0.0001487,2]
[334709319,1723493453906,-151.0,0.00014881,2]
[334709320,1723493453916,-151.0,0.00015139,2]
[334709321,1723493453926,-261.49,0.00015144,2]
[334709322,1723493453938,-151.0,0.00015317,2]
[334709323,1723493453949,-151.0,0.00015429,2]
[334709324,1723493453959,-373.13879727,0.00015592,2]
[334709325,1723493453968,-1843.78,0.00015592,2]
[334709326,1723493453977,-1159.94,0.00015592,2]
[334709327,1723493453986,-735.25,0.00015592,2]
[334709328,1723493453997,-655.46332611,0.00015681,2]
[334709329,1723493454007,-500.0,0.00015687,2]
[334709330,1723493454018,-500.0,0.00015687,2]
[334709331,1723493454027,-500.0,0.00015687,2]
[334709332,1723493454038,-500.0,0.00015687,2]
[334709333,1723493454047,-778.41,0.00015687,2]
[334709334,1723493454057,-500.0,0.00015687,2]
[334709335,1723493454067,-500.0,0.00015687,2]
[334709336,1723493454079,-500.0,0.00015687,2]
[334709337,1723493454090,-692.2,0.00015687,2]
[334709338,1723493454099,-674.19,0.00015687,2]
[334709339,1723493454109,-841.02,0.00015687,2]
[334709340,1723493454119,-500.0,0.00015687,2]
[334709341,1723493454129,-500.0,0.00015687,2]
[334709342,1723493454139,-500.0,0.00015687,2]
[334709343,1723493454149,-500.0,0.00015687,2]
[334709344,1723493454158,-500.0,0.00015687,2]
[334709345,1723493454168,-500.0,0.00015687,2]
[334709346,1723493454177,-1002.34,0.00015687,2]
[334709347,1723493454189,-500.0,0.00015687,2]
[334709348,1723493454198,-500.0,0.00015687,2]
[334709349,1723493454207,-500.0,0.00015687,2]
[334709350,1723493454216,-500.0,0.00015687,2]
[334709351,1723493454227,-500.0,0.00015687,2]
[334709352,1723493454237,-538.048825,0.00015687,2]
[334709353,1723493454246,-500.0,0.00015687,2]
[334709354,1723493454258,-500.0,0.00015687,2]
[334709355,1723493454268,-538.048825,0.00015687,2]
[334709356,1723493454278,-500.0,0.00015687,2]
[334709357,1723493454287,-500.0,0.00015687,2]
[334709358,1723493454298,-2833.6,0.00015687,2]
[334709359,1723493454309,-610.87,0.00015687,2]
[334709360,1723493454319,-770.67,0.00015687,2]
[334709361,1723493454329,-1038.51,0.00015687,2]
[334709362,1723493454339,-1595.32,0.00015687,2]
[334709363,1723493454349,-163.944025,0.00015687,2]
[334709364,1723493454359,-163.944025,0.00015687,2]
[334709365,1723493454368,-591.28569018,0.00015687,2]
[334709366,1723493454377,-500.0,0.00015687,2]
[334709367,1723493454387,-500.0,0.00015687,2]
[334709368,1723493454397,-500.0,0.00015687,2]
[334709369,1723493454407,-151.0,0.00015687,2]
[334709370,1723493454418,-500.0,0.00015687,2]
[334709371,1723493454428,-934.47,0.00015687,2]
[334709372,1723493454446,-1114.06,0.00015687,2]
[334709373,1723493454466,-151.0,0.00015687,2]
[334709374,1723493454478,-500.0,0.00015687,2]
[334709375,1723493454489,-1341.07,0.00015687,2]
[334709376,1723493454499,-1704.47,0.00015687,2]
[334709377,1723493454510,-500.0,0.00015687,2]
[334709378,1723493454520,-985.04,0.00015687,2]
[334709379,1723493454530,-500.0,0.00015687,2]
[334709380,1723493454540,-235.018642,0.00015687,2]
[334709381,1723493454550,-235.018642,0.00015687,2]
[334709382,1723493454560,-500.0,0.00015687,2]
[334709383,1723493454571,-500.0,0.00015687,2]
[334709384,1723493454581,-736.18,0.00015687,2]
[334709385,1723493454591,-1015.83,0.00015687,2]
[334709386,1723493454601,-1319.39,0.00015687,2]
[334709387,1723493454611,-500.0,0.00015687,2]
[334709388,1723493454620,-551.06418126,0.00015687,2]
[334709389,1723493454629,-500.0,0.00015687,2]
[334709390,1723493454639,-500.0,0.00015687,2]
[334709391,1723493454651,-975.22,0.00015687,2]
[334709392,1723493454661,-4704.69,0.00015687,2]
[334709393,1723493454671,-1757.25,0.00015687,2]
[334709394,1723493454685,-500.0,0.00015687,2]
[334709395,1723493454695,-500.0,0.00015687,2]
[334709396,1723493454705,-396.125028,0.00015687,2]
[334709397,1723493454716,-500.0,0.00015687,2]
[334709398,1723493454726,-500.0,0.00015687,2]
[334709399,1723493454736,-396.125028,0.00015687,2]
[334709400,1723493454746,-196.31697794,0.00015687,2]
[334709401,1723493454756,-743.1,0.00015687,2]
[334709402,1723493454766,-591.97028953,0.00015687,2]
[334709403,1723493454776,-500.0,0.00015687,2]
[334709404,1723493454786,-819.93,0.00015687,2]
[334709405,1723493454796,-680.58,0.00015687,2]
[334709406,1723493454805,-500.0,0.00015687,2]
[334709407,1723493454815,-1640.83,0.00015687,2]
[334709408,1723493454827,-1033.78,0.00015687,2]
[334709409,1723493454838,-973.44,0.00015687,2]
[334709410,1723493454848,-833.02,0.00015687,2]
[334709411,1723493454858,-500.0,0.00015687,2]
[334709412,1723493454870,-481.0305294,0.00015687,2]
[334709413,1723493454880,-500.0,0.00015687,2]
[334709414,1723493454890,-500.0,0.00015687,2]
[334709415,1723493454900,-500.0,0.00015687,2]
[334709416,1723493454912,-566.29,0.00015687,2]
[334709417,1723493454922,-500.0,0.00015687,2]
[334709418,1723493454933,-500.0,0.00015687,2]
[334709419,1723493454944,-2780.58,0.00015687,2]
[334709420,1723493454953,-222.68718128,0.00015687,2]
[334709421,1723493454965,-4030.51,0.00015687,2]
[334709422,1723493454974,-338.95906,0.00015691,2]
[334709423,1723493454984,-338.95906,0.00015691,2]
[334709424,1723493454993,-1274.79,0.00015691,2]
[334709425,1723493455004,-500.0,0.00015691,2]
[334709426,1723493455015,-500.0,0.00015691,2]
[334709427,1723493455026,-500.0,0.00015691,2]
[334709428,1723493455036,-1229.37,0.00015691,2]
[334709429,1723493455046,-593.07,0.00015691,2]
[334709430,1723493455057,-548.59,0.00015691,2]
[334709431,1723493455066,-6767.63,0.00015691,2]
[334709432,1723493455076,-500.0,0.00015691,2]
[334709433,1723493455086,-1091.47,0.00015691,2]
[334709434,1723493455095,-2080.65,0.00015691,2]
[334709435,1723493455105,-3407.53,0.00015691,2]
[334709436,1723493455116,-1336.77,0.00015691,2]
[334709437,1723493455126,-747.63,0.00015691,2]
[334709438,1723493455137,-489.698175,0.00015691,2]
[334709439,1723493455148,-489.698175,0.00015691,2]
[334709440,1723493455158,-1677.62,0.00015691,2]
[334709441,1723493455167,-563.72385,0.00015691,2]
[334709442,1723493455177,-563.72385,0.00015691,2]
[334709443,1723493455190,-151.0,0.00015691,2]
[334709444,1723493455200,-151.0,0.00015691,2]
[334709445,1723493455209,-217.733989,0.00015691,2]
[334709446,1723493455219,-1062.88,0.00015691,2]
[334709447,1723493455228,-217.733989,0.00015691,2]
[334709448,1723493455239,-863.16,0.00015691,2]
[334709449,1723493455250,-500.0,0.00015691,2]
[334709450,1723493455259,-307.197218,0.00015691,2]
[334709451,1723493455269,-307.197218,0.00015691,2]
[334709452,1723493455279,-754.440334,0.00015691,2]
[334709453,1723493455289,-754.440334,0.00015691,2]
[334709454,1723493455303,-151.0,0.00015691,2]
[334709455,1723493455314,-151.0,0.00015691,2]
[334709456,1723493455325,-151.0,0.00015691,2]
[334709457,1723493455336,-754.79,0.00015692,2]
[334709458,1723493455347,-500.0,0.00015692,2]
[334709459,1723493455359,-500.0,0.00015692,2]
[334709460,1723493455369,-500.0,0.00015692,2]
[334709461,1723493455379,-500.0,0.00015692,2]
[334709462,1723493455389,-594.9,0.00015692,2]
[334709463,1723493455398,-666.22,0.00015692,2]
[334709464,1723493455409,-757.45,0.00015692,2]
[334709465,1723493455418,-500.0,0.00015692,2]
[334709466,1723493455429,-500.0,0.00015692,2]
[334709467,1723493455442,-664.84,0.00015692,2]
[334709468,1723493455452,-500.0,0.00015692,2]
[334709469,1723493455462,-500.0,0.00015692,2]
[334709470,1723493455472,-500.0,0.00015692,2]
[334709471,1723493455482,-526.27,0.00015692,2]
[334709472,1723493455491,-500.0,0.00015692,2]
[334709473,1723493455501,-500.0,0.00015692,2]
[334709474,1723493455512,-500.0,0.00015692,2]
[334709475,1723493455522,-1143.79,0.00015692,2]
[334709476,1723493455533,-500.0,0.00015692,2]
[334709477,1723493455542,-500.0,0.00015692,2]
[334709478,1723493455552,-500.0,0.00015692,2]
[334709479,1723493455562,-586.95,0.00015692,2]
[334709480,1723493455572,-500.0,0.00015692,2]
[334709481,1723493455582,-576.31,0.00015692,2]
[334709482,1723493455592,-500.0,0.00015692,2]
[334709483,1723493455602,-500.0,0.00015692,2]
[334709484,1723493455612,-767.74,0.00015692,2]
[334709485,1723493455622,-500.0,0.00015692,2]
[334709486,1723493455632,-1492.04,0.00015692,2]
[334709487,1723493455641,-500.0,0.00015692,2]
[334709488,1723493455651,-1088.62,0.00015692,2]
[334709489,1723493455661,-500.0,0.00015692,2]
[334709490,1723493455671,-500.0,0.00015692,2]
[334709491,1723493455684,-612.61,0.00015692,2]
[334709492,1723493455693,-574.13,0.00015692,2]
[334709493,1723493455702,-1523.59,0.00015692,2]
[334709494,1723493455711,-500.0,0.00015692,2]
[334709495,1723493455720,-1364.03,0.00015692,2]
[334709496,1723493455730,-530.39958215,0.00015692,2]
[334709497,1723493455739,-500.0,0.00015692,2]
[334709498,1723493455749,-545.91,0.00015692,2]
[334709499,1723493455759,-2051.46,0.00015692,2]
[334709500,1723493455769,-500.0,0.00015692,2]
[334709501,1723493455779,-1197.08,0.00015692,2]
[334709502,1723493455789,-500.0,0.00015703,2]
[334709503,1723493455800,-500.0,0.00015703,2]
[334709504,1723493455810,-817.28,0.00015703,2]
[334709505,1723493455820,-258.77780362,0.00015703,2]
[334709506,1723493455834,-447.97085865,0.00015703,2]
[334709507,1723493455844,-500.0,0.00015703,2]
[334709508,1723493455854,-500.0,0.00015703,2]
[334709509,1723493455864,-500.0,0.00015703,2]
[334709510,1723493455875,-500.0,0.00015703,2]
[334709511,1723493455884,-500.0,0.00015703,2]
[334709512,1723493455894,-500.0,0.00015703,2]
[334709513,1723493455907,-1081.43,0.00015703,2]
[334709514,1723493455917,-500.0,0.00015703,2]
[334709515,1723493455927,-500.0,0.00015703,2]
[334709516,1723493455946,-500.0,0.00015703,2]
[334709517,1723493455957,-500.0,0.00015703,2]
[334709518,1723493455967,-500.0,0.00015703,2]
[334709519,1723493455977,-890.51,0.00015703,2]
[334709520,1723493455987,-500.0,0.00015703,2]
[334709521,1723493455996,-560.92,0.00015703,2]
[334709522,1723493456006,-500.0,0.00015703,2]
[334709523,1723493456016,-500.0,0.00015703,2]
[334709524,1723493456026,-523.99970198,0.00015703,2]
[334709525,1723493456036,-500.0,0.00015703,2]
[334709526,1723493456045,-500.0,0.00015703,2]
[334709527,1723493456055,-500.0,0.00015703,2]
[334709528,1723493456065,-500.0,0.00015703,2]
[334709529,1723493456075,-500.0,0.00015703,2]
[334709530,1723493456084,-500.0,0.00015703,2]
[334709531,1723493456242,-500.0,0.00015703,2]
[334709532,1723493456251,-450.69397081,0.00015703,2]
[334709533,1723493456260,-500.0,0.00015703,2]
[334709534,1723493456270,-500.0,0.00015703,2]
[334709535,1723493456279,-500.0,0.00015703,2]
[334709536,1723493456289,-500.0,0.00015703,2]
[334709537,1723493456298,-720.13,0.00015703,2]
[334709538,1723493456308,-500.0,0.00015703,2]
[334709539,1723493456317,-2521.05,0.00015703,2]
[334709540,1723493456328,-556.84,0.00015703,2]
[334709541,1723493456338,-500.0,0.00015703,2]
[334709542,1723493456347,-500.0,0.00015703,2]
[334709543,1723493456357,-500.0,0.00015703,2]
[334709544,1723493456367,-619.28,0.00015703,2]
[334709545,1723493456377,-500.0,0.00015703,2]
[334709546,1723493456387,-500.0,0.00015703,2]
[334709547,1723493456397,-500.0,0.00015703,2]
[334709548,1723493456407,-500.0,0.00015703,2]
[334709549,1723493456418,-1384.31526916,0.00015708,2]
[334709550,1723493456427,-9652.40516915,0.00015708,2]
[334709551,1723493456439,-12398.9367287,0.00015708,2]
[334709552,1723493456450,-1164.02523181,0.00015708,2]
[334709553,1723493456459,-2164.74871652,0.00015708,2]
[334709554,1723493456469,-7008.86868586,0.00015708,2]
[334709555,1723493456478,-1993.66421949,0.00015708,2]
[334709556,1723493456487,-2710.71989764,0.00015708,2]
[334709557,1723493456497,-3090.72018399,0.00015708,2]
[334709558,1723493456506,-1612.28857669,0.00015708,2]
[334709559,1723493456515,-1765.28037207,0.00015708,2]
[334709560,1723493456525,-20780.14466348,0.00015708,2]
[334709561,1723493456534,-338.95906,0.00015708,2]
[334709562,1723493456543,-338.95906,0.00015708,2]
[334709563,1723493456552,-538.048825,0.00015708,2]
[334709564,1723493456562,-538.048825,0.00015708,2]
[334709565,1723493456571,-163.944025,0.00015708,2]
[334709566,1723493456581,-163.944025,0.00015708,2]
[334709567,1723493456591,-151.0,0.00015708,2]
[334709568,1723493456600,-151.0,0.00015708,2]
[334709569,1723493456609,-235.018642,0.00015708,2]
[334709570,1723493456618,-235.018642,0.00015708,2]
[334709571,1723493456627,-396.125028,0.00015708,2]
[334709572,1723493456635,-396.125028,0.00015708,2]
[334709573,1723493456644,-29193.22223321,0.00015709,2]
[334709574,1723493456660,-5851.42393532,0.00015709,2]
[334709575,1723493456669,-55434.59759481,0.00015709,2]
[334709576,1723493456679,-3876.96110062,0.00015709,2]
[334709577,1723493457125,159.33909934,0.0001212,2]
[334709578,1723493457172,601.1945502,0.0001212,2]
[334709579,1723493563953,459.69835721,0.00015,4]
[334709580,1723493567785,1020.71977583,9.999e-05,2]
[334709581,1723493582767,154.91162192,9.999e-05,2]
[334709582,1723493583900,504.80821134,9.999e-05,2]
[334709583,1723493599339,309.33495762,9.999e-05,2]
[334709584,1723493599952,227.8744067,9.999e-05,2]
[334709585,1723493605126,1020.71977583,0.0001212,2]
[334709586,1723493622675,14253.43287366,0.0001212,2]
[334709587,1723493641246,862.2467453,0.0001212,2]
[334709588,1723493659407,282.7920315,9.999e-05,2]
[334709593,1723494214549,241.04577133,9.999e-05,2]
[334709594,1723494339264,166.666669,0.00013699,2]
[334709595,1723494423558,1669.01055043,0.00013699,2]
[334709596,1723494480842,188.40491976,9.999e-05,2]
[334709597,1723494493029,746.26,0.00010959,2]
[334709598,1723494563172,205.39379948,9.999e-05,2]
[334709599,1723494612235,309.4584508,9.999e-05,2]
[334709600,1723494626547,208.45850869,9.999e-05,2]
[334709615,1723494632361,-166.666669,0.00014056,2]
[334709616,1723494632372,-159.00942,0.00014247,2]
[334709617,1723494632382,-161.841047,0.00014247,2]
[334709624,1723494632564,-166.666669,0.00014413,2]
[334709626,1723494632574,-161.84089504,0.00014541,2]
[334709628,1723494632584,-2109.89845404,0.00014561,2]
[334709630,1723494632593,-322.79290283,0.00014581,2]
[334709632,1723494632603,-150.112233,0.000146,2]
[334709634,1723494632612,-300.0,0.00014629,2]
[334709636,1723494632622,-300.0,0.00014629,2]
[334709638,1723494632635,-7812.1803862,0.00014631,2]
[334709641,1723494632646,-13954.586583,0.00014631,2]
[334709643,1723494632656,-500.0,0.00014639,2]
[334709645,1723494632665,-148.47231657,0.00014639,2]
[334709647,1723494632676,-269.20238786,0.00014639,2]
[334709649,1723494632685,-193.02561214,0.00014639,2]
[334709669,1723494638527,-293.20913885,0.00014629,2]
[334709670,1723494638538,-500.0,0.00014629,2]
[334709671,1723494638547,-500.0,0.00014629,2]
[334709672,1723494638556,-248.143943,0.00014629,2]
[334709673,1723494638566,-500.0,0.00014629,2]
[334709674,1723494638576,-500.0,0.00014629,2]
[334709675,1723494638585,-500.0,0.00014629,2]
[334709676,1723494638594,-500.0,0.00014629,2]
[334709677,1723494638603,-500.0,0.00014629,2]
[334709678,1723494638616,-500.0,0.00014629,2]
[334709679,1723494638626,-500.0,0.00014629,2]
[334709680,1723494638636,-500.0,0.00014629,2]
[334709681,1723494638646,-500.0,0.00014629,2]
[334709682,1723494638655,-500.0,0.00014629,2]
[334709683,1723494638665,-500.0,0.00014629,2]
[334709684,1723494638674,-500.0,0.00014629,2]
[334709685,1723494638684,-500.0,0.00014629,2]
[334709686,1723494638693,-500.0,0.00014629,2]
[334709687,1723494638702,-500.0,0.00014629,2]
[334709688,1723494638711,-500.0,0.00014629,2]
[334709689,1723494638720,-500.0,0.00014629,2]
[334709690,1723494638729,-500.0,0.00014629,2]
[334709691,1723494638738,-500.0,0.00014629,2]
[334709692,1723494638747,-500.0,0.00014629,2]
[334709693,1723494638757,-500.0,0.00014629,2]
[334709694,1723494638766,-500.0,0.00014629,2]
[334709695,1723494638776,-500.0,0.00014629,2]
[334709696,1723494638785,-500.0,0.00014629,2]
[334709697,1723494638795,-446.79618955,0.00014629,2]
[334709698,1723494638804,-500.0,0.00014629,2]
[334709699,1723494638813,-500.0,0.00014629,2]